Cogmind - Beta 16.1 @@@ ROGUE MODE // 2026.04.07 @ 16:40:05 Player: obl-vn Result: Destroyed by G-67 Veteran with Plasma Rifle Performance ------------- Evolutions (7) 3500 Regions Visited (15) 3000 Robots Destroyed (177) 885 Value Destroyed (7810) 7810 Prototype IDs (26) 520 Alien Tech Used (0) 0 Bonus (4452) 4452 TOTAL SCORE: 20167 Bonus ------- Pacifist 270 Triggered Max Security 1000 High Alert Combat Kills 2109 Aligned with FarCom 300 Met Imprinter 300 Scanned by Researcher 500 Friendly Fire -27 Cogmind --------- Core Integrity 0/1300 Matter 160/300 Energy 100/100 System Corruption 36% Temperature Cool (4) Movement Core (50) Location -3/Testing Parts ------- > --- POWER (3) -------- (None) > --- PROPULSION (7) --- (None) > --- UTILITY (8) ------ (None) > --- WEAPON (3) ------- (None) > --- INVENTORY (5) ---- Improved Trap Scanner Energy Filter Improved Trap Extractor (0/6) Heavy Disruptor Cannon Peak State ------------ > --- POWER ------------ Antimatter Reactor Particle Reactor Particle Reactor > --- PROPULSION ------- Medium Treads Armored Heavy Treads Advanced Heavy Treads Biometal Heavy Treads > --- UTILITY ---------- Improved Cryofiber Web Advanced Heat Sink Coolant Injector Huge Storage Unit Advanced Launcher Guidance Computer Graphene Brace Improved Hardlight Generator Experimental Hacking Suite > --- WEAPON ----------- Advanced EMP Blaster Advanced EMP Blaster Tiamat Missile Launcher > --- INVENTORY -------- Light Antimatter Reactor Matter Compressor Improved Trap Scanner Energy Filter Transmission Jammer Focal Shield Improved Trap Extractor Trap Reconfigurator Heavy Disruptor Cannon Linear Accelerator CR-A16's Pointy Stick [Rating: 141] Favorites ----------- Power Improved Deuterium Engine Engine Improved Deuterium Engine Power Core Micro Nuclear Core Reactor Particle Reactor Propulsion Advanced Treads Treads Advanced Treads Leg Thunder Leg Utility Huge Storage Unit Device Energy Filter Storage Huge Storage Unit Processor Launcher Guidance Computer Hackware Experimental Hacking Suite Protection Improved Light Armor Plating Weapon Advanced EMP Blaster Energy Gun Medium Laser Energy Cannon Heavy Ion Cannon Ballistic Gun Shotgun Ballistic Cannon Gauss Cannon Launcher Advanced EMP Blaster Special Weapon Mining Laser Piercing Weapon CR-A16's Pointy Stick Build | -11 -10 -10 -10 -9 -8 -7 -7 -7 -7 -6 -6 -5 -4 -3 -3 ------- Run | Yrd Mat Min Exi Min Mat Fac Low Low Zio Pro Fac Fac Fac Res Tes Slots Evolved 14 | . . . . . 4 2 . . . . 2 2 2 2 . Power 2 | . . . . . 1 . . . . . . . . 1 . Propulsion 5 | . . . . . . 2 . . . . . 1 1 1 . Utility 6 | . . . . . 2 . . . . . 2 1 1 . . Weapon 1 | . . . . . 1 . . . . . . . . . . Parts Attached 111 | 4 1 1 3 1 36 8 8 4 1 . 5 14 4 19 2 Power 23 | 1 . . . . 4 3 2 2 1 . 1 3 . 5 1 Engine 10 | 1 . . . . 4 1 1 2 . . 1 . . . . Core 7 | . . . . . . 2 1 . 1 . . 3 . . . Reactor 6 | . . . . . . . . . . . . . . 5 1 Propulsion 26 | 2 . . . . 8 2 . . . . . 7 1 5 1 Treads 18 | 2 . . . . 8 2 . . . . . 2 . 3 1 Leg 8 | . . . . . . . . . . . . 5 1 2 . Wheel . | . . . . . . . . . . . . . . . . Hover . | . . . . . . . . . . . . . . . . Flight . | . . . . . . . . . . . . . . . . Utility 35 | 1 . 1 3 . 10 2 2 2 . . 3 3 3 5 . Device 17 | . . . 1 . 3 . 1 2 . . 3 2 2 3 . Storage 5 | 1 . . 2 . 1 1 . . . . . . . . . Processor 4 | . . 1 . . 1 1 . . . . . . . 1 . Hackware 2 | . . . . . . . . . . . . 1 1 . . Protection 7 | . . . . . 5 . 1 . . . . . . 1 . Artifact . | . . . . . . . . . . . . . . . . Weapon 27 | . 1 . . 1 14 1 4 . . . 1 1 . 4 . Energy Gun 3 | . 1 . . 1 . . . . . . . . . 1 . Energy Cannon 4 | . . . . . 1 . 2 . . . . 1 . . . Ballistic Gun 7 | . . . . . 7 . . . . . . . . . . Ballistic Cannon 6 | . . . . . 3 1 . . . . 1 . . 1 . Launcher 5 | . . . . . 2 . 2 . . . . . . 1 . Special Weapon 1 | . . . . . 1 . . . . . . . . . . Impact Weapon . | . . . . . . . . . . . . . . . . Slashing Weapon . | . . . . . . . . . . . . . . . . Piercing Weapon 1 | . . . . . . . . . . . . . . 1 . Special Melee Weapon . | . . . . . . . . . . . . . . . . Unidentified Prototypes 2 | . . . . . 1 . . . . . . . 1 . . Corrupted Parts 2 | . . . . . . . . . . . 1 . . . 1 System Corruption 15 | . . . . . . . . . . . 10 . . . 5 Parts Lost 38 | . . . . . 2 1 1 . . . . 3 1 18 12 Power 11 | . . . . . 2 1 1 . . . . 2 . 4 1 Propulsion 12 | . . . . . . . . . . . . . . 8 4 Utility 7 | . . . . . . . . . . . . . 1 2 4 Weapon 8 | . . . . . . . . . . . . 1 . 4 3 Highest Loss Streak 12 | . . . . . 1 1 1 . . . . 2 1 12 7 To Critical Strikes . | . . . . . . . . . . . . . . . . Average Backups 20 | 2 1 4 3 4 16 22 23 24 24 24 24 24 22 19 12 Power 1 | . . 1 . . 2 1 1 2 2 2 2 1 2 1 1 Propulsion 2 | 1 . . . . 2 2 2 2 2 2 2 6 6 3 . Utility 10 | . 1 2 2 3 5 11 14 14 14 14 13 10 9 9 8 Weapon 5 | . . 1 1 1 6 7 6 6 6 6 6 5 5 4 2 Tool/Special . | . . . . . . . . . . . . . . . . Unused Backups 33 | . . . . . 13 2 1 1 1 . 5 4 . 1 5 Power 3 | . . . . . . 1 . . . . 1 . . . 1 Propulsion 6 | . . . . . 4 . . . . . . 1 . 1 . Utility 12 | . . . . . 2 . 1 1 . . 4 2 . . 2 Weapon 12 | . . . . . 7 1 . . 1 . . 1 . . 2 Tool/Special . | . . . . . . . . . . . . . . . . Average Slot Usage (%) 94 | . 44 44 71 95 89 98 99 100 99 100 99 95 89 85 78 Engine 8 | . 6 . 4 14 9 7 2 8 12 15 13 9 . . . Core 2 | . . . . . . 4 11 6 2 . . 1 10 4 . Treads 23 | . 28 28 28 28 18 29 30 30 30 30 26 18 . 9 17 Leg 2 | . . . . . . . . . . . . 7 27 15 . Device 12 | . . . 6 . 1 15 12 7 7 7 20 25 29 20 19 Storage 6 | . . . 4 14 9 7 7 7 7 7 6 5 5 4 3 Processor 6 | . . 2 14 14 9 7 7 7 7 7 6 5 5 4 3 Protection 6 | . . . . . 15 . 2 6 7 7 5 2 . . 2 Energy Cannon 1 | . . . . . . 3 . . . . 2 4 5 1 . Ballistic Gun 2 | . . . . . 14 . . . . . . . . . . Ballistic Cannon 5 | . . . . . 9 3 7 7 6 7 3 3 . 1 . Launcher 9 | . . . . . 1 14 14 15 15 15 12 6 5 3 10 Peak Build Rating 141 | 4 4 5 14 9 42 56 55 54 55 54 68 96 109 137 141 Average Rating 58 | . 3 3 9 8 23 50 52 53 54 54 62 86 100 127 128 On Entrance 46 | . 3 3 5 7 9 42 55 53 54 54 54 65 94 109 137 Avg Prop Armor Cover (%) 32 | 34 34 34 32 . . . . . . . . . . 7 . Naked Turns 10 | . . . . . . . . . . . . . . . 10 Heaviest Build 165 | 3 3 2 25 28 74 119 119 125 129 125 130 133 132 161 165 Greatest Support 235 | 3 3 3 40 40 44 88 88 88 88 88 88 141 138 235 233 Greatest Overweight (x) 2 | . . . . . 1 1 1 1 1 1 1 1 . 2 . Average Overweight (x) . | . . . . . . . 1 1 1 1 1 . . . . Largest Inventory Capacity 25 | 8 5 5 20 15 20 25 25 25 25 25 25 25 25 25 25 Average Capacity 22 | 5 5 5 8 15 18 24 25 25 25 25 25 25 25 25 23 Most Carried 25 | 4 4 5 6 6 20 25 25 25 25 25 25 25 25 25 15 Average Carried 21 | 2 2 4 4 5 17 23 24 25 25 25 24 24 24 20 13 Final Capacity 25 | 5 5 5 15 15 20 25 25 25 25 25 25 25 25 25 5 Final Carried 25 | 1 4 5 5 5 20 25 25 25 25 25 25 24 25 15 5 Class Distribution -------------------- 40% | Bomber 26% | Skirmisher 16% | Tank 16% | Mutant Dominant Class ---------------- Mutant | -10/Materials Mutant | -10/Mines Mutant | -10/Exiles Mutant | -9/Mines Tank | -8/Materials Skirmisher | -7/Factory Bomber | -7/Lower Caves Bomber | -7/Lower Caves Bomber | -7/Zion Bomber | -6/Proximity Caves Skirmisher | -6/Factory Bomber | -5/Factory Mutant | -4/Factory Mutant | -3/Research Mutant | -3/Testing Resources | -11 -10 -10 -10 -9 -8 -7 -7 -7 -7 -6 -6 -5 -4 -3 -3 ----------- Run | Yrd Mat Min Exi Min Mat Fac Low Low Zio Pro Fac Fac Fac Res Tes Matter Collected 5543 | 240 . . . 50 1666 505 380 256 16 90 641 429 100 745 425 Remotely . | . . . . . . . . . . . . . . . . Salvage Created 8042 | . . . . . 1853 424 723 668 . 202 608 696 192 1057 1619 Parts 379 | . . . . . 108 25 21 21 . 8 39 32 26 56 43 Haulers Intercepted 7 | . . . . . 4 . . . . . 2 1 . . . Recyclers Shooed 8 | . . . . . 2 1 . . . . 1 . . 4 . Parts Field Recycled . | . . . . . . . . . . . . . . . . Retrieved Matter . | . . . . . . . . . . . . . . . . Parts Self-Destructed 13 | . . . . . . . 5 7 . 1 . . . . . Prevented 27 | . . . . . . . 11 10 . 6 . . . . . Parts Restored . | . . . . . . . . . . . . . . . . Kills | -11 -10 -10 -10 -9 -8 -7 -7 -7 -7 -6 -6 -5 -4 -3 -3 ------- Run | Yrd Mat Min Exi Min Mat Fac Low Low Zio Pro Fac Fac Fac Res Tes Combat Hostiles Destroyed 132 | . . . . . 37 5 12 11 . 4 7 12 1 14 29 Melee 6 | . . . . . . . . . . . . . . 6 . Guns 11 | . . . . . 11 . . . . . . . . . . Cannons 36 | . . . . . 21 2 2 2 . . 3 3 . 3 . AOE 54 | . . . . . 4 1 7 5 . 4 1 7 . 3 22 Classes Destroyed 21 | . . . . . 12 1 . 1 . 1 2 . . . 4 Worker 11 | . . . . . 4 2 . . . . 1 . 1 3 . Builder 8 | . . . . . 3 . . . . . . . 5 . . Hauler 7 | . . . . . 4 . . . . . 2 1 . . . Recycler 4 | . . . . . 2 1 . . . . . . . 1 . Mechanic 4 | . . . . . 1 . . . . . . . . . 3 Operator 5 | . . . . . 4 . . . . . 1 . . . . Drone 1 | . . . . . . . . . . 1 . . . . . Watcher 5 | . . . . . 3 1 . . . . . 1 . . . Swarmer 11 | . . . . . 6 . . . . . 1 4 . . . Saboteur 2 | . . . . . . . . . . . . . . . 2 Grunt 56 | . . . . . 21 . 5 7 . 2 . 5 . 6 10 Brawler 6 | . . . . . 2 . . 1 . . . . . 1 2 Duelist 8 | . . . . . 1 . 2 1 . 1 . . . . 3 Protector 3 | . . . . . . . . . . . . . . . 3 Sentry 17 | . . . . . 7 3 1 1 . . 2 . 1 . 2 Hunter 2 | . . . . . . . . . . . 1 . . . 1 Programmer 19 | . . . . . . 2 1 . . . 2 3 . 7 4 Heavy 1 | . . . . . . . . . . . 1 . . . . Investigator 1 | . . . . . . . . . . . . . . . 1 Striker 2 | . . . . . . . . . . . . . . . 2 Thug 3 | . . . . . . . 3 . . . . . . . . Mutant 1 | . . . . . . . . 1 . . . . . . . Best Kill Streak 17 | . . . . . 6 2 4 6 . 3 3 9 7 6 17 Combat Bots Only 17 | . . . . . 5 1 4 6 . 3 3 9 1 3 17 Max Kills in Single Turn 5 | . . . . . 3 1 2 1 . 2 1 4 2 2 5 Gunslinging 1 | . . . . . 1 . . . . . . . . . . Exploded 5 | . . . . . 3 1 2 1 . 2 1 4 . 2 5 Melee 1 | . . . . . . . . . . . . . . 1 . Uniques/NPCs Destroyed . | . . . . . . . . . . . . . . . . Combat | -11 -10 -10 -10 -9 -8 -7 -7 -7 -7 -6 -6 -5 -4 -3 -3 -------- Run | Yrd Mat Min Exi Min Mat Fac Low Low Zio Pro Fac Fac Fac Res Tes Hostile Shots Fired 814 | . 7 . . . 126 55 13 21 . 2 64 30 2 187 307 Missed 216 | . . . . . 27 27 2 11 . . 20 12 . 47 70 Hits 598 | . 7 . . . 99 28 11 10 . 2 44 18 2 140 237 Melee 35 | . . . . . 2 . 1 . . . . . . 3 29 Projectile 563 | . 7 . . . 97 28 10 10 . 2 44 18 2 137 208 AOE 1 | . . . . . . . . . . . . . . . 1 Critical Strikes 44 | . . . . . 3 . 1 . . . 2 1 . 13 24 Actively Blocked 27 | . . . . . . . . . . . . 1 . 13 13 Part Disruptions 3 | . . . . . . . . . . . . 1 . 2 . Damage Taken 10981 | . 76 . . . 1341 352 342 180 . 55 632 610 98 3528 3767 Core 1584 | . 21 . . . 85 38 65 . . . 30 12 25 266 1042 Absorbed by Shields 2360 | . . . . . . . . . . . . . . 6 2354 Reduced by Siege Mode 461 | . . . . . . . . . . . . . . . 461 Redirected to Shielding 110 | . . . . . . . . . . . . . . 41 69 Ignored by Resistances 234 | . . . . . 76 . . . . . . . 11 147 . Regen/Repaired (Parts) 799 | . . . . . . . . . 672 . . 81 . 46 . Core Remaining (%) 93 | 100 . . . 91 84 . . . . 85 96 98 97 . . Volleys Fired 447 | . 1 1 . . 111 24 33 22 1 4 85 38 31 76 20 Largest 3 | . 1 1 . . 3 3 3 2 1 2 3 2 1 2 3 Hottest 170 | . 50 50 . . 106 137 170 72 40 72 170 90 90 144 118 Shots Fired 734 | . 1 1 . . 311 36 53 30 1 8 101 43 31 86 32 Gun 139 | . 1 1 . . 132 5 . . . . . . . . . Cannon 413 | . . . . . 164 19 20 12 1 . 77 27 23 70 . Launcher 178 | . . . . . 11 12 33 18 . 8 24 16 8 16 32 Special 4 | . . . . . 4 . . . . . . . . . . Kinetic 396 | . . . . . 292 14 16 12 1 . 44 5 . 12 . Thermal 160 | . 1 1 . . 8 10 4 . . . 33 22 23 58 . Explosive 16 | . . . . . . . . . . . . . . 5 11 Electromagnetic 162 | . . . . . 11 12 33 18 . 8 24 16 8 11 21 Robot Hit Streak 38 | . 1 . . . 9 11 8 4 . 5 10 8 3 9 38 Robot Miss Streak 5 | . . . . . 5 2 1 1 . . 1 3 . 3 . Penetration Max . | . . . . . . . . . . . . . . . . Secondary Targets 1 | . . . . . 1 . . . . . . . . . . Max Gunslinging Chain 1 | . . . . . 1 . . . . . . . . . . Shots Hit Robots 357 | . 1 . . . 186 21 13 15 . 2 27 16 1 46 29 Core Hits 381 | . . . . . 109 12 17 20 . 9 16 18 8 28 144 Critical Kills 1 | . . . . . 1 . . . . . . . . . . Critical Parts Destroyed 1 | . . . . . 1 . . . . . . . . . . Critical Strikes 13 | . . . . . 9 2 . . . . . . . 2 . Destroy 2 | . . . . . 2 . . . . . . . . . . Blast 10 | . . . . . 7 2 . . . . . . . 1 . Impale 1 | . . . . . . . . . . . . . . 1 . Melee Attacks 43 | . . . . . . . . . . . . . . 43 . Impact . | . . . . . . . . . . . . . . . . Slashing . | . . . . . . . . . . . . . . . . Piercing 43 | . . . . . . . . . . . . . . 43 . Sneak Attacks 6 | . . . . . . . . . . . . . . 6 . Combat Hostiles 1 | . . . . . . . . . . . . . . 1 . Follow-up Attacks . | . . . . . . . . . . . . . . . . Damage Inflicted 22277 | . 12 . . . 3885 744 1391 1114 . 598 1313 1615 419 2595 8591 Guns 1628 | . 12 . . . 1532 84 . . . . . . . . . Cannons 4341 | . . . . . 1839 340 266 226 . . 547 383 . 740 . Explosions 15499 | . . . . . 506 320 1125 888 . 598 734 1232 419 1086 8591 Melee 756 | . . . . . . . . . . . . . . 756 . Ramming 53 | . . . . . 8 . . . . . 32 . . 13 . Kinetic 4853 | . . . . . 3330 327 129 226 . . 459 70 . 312 . Thermal 2566 | . 12 . . . 41 118 247 10 . 100 181 888 102 437 430 Explosive 6505 | . . . . . . . . . . . . . . 470 6035 Electromagnetic 7544 | . . . . . 506 299 1015 878 . 498 641 657 317 607 2126 Impact . | . . . . . . . . . . . . . . . . Slashing . | . . . . . . . . . . . . . . . . Piercing 756 | . . . . . . . . . . . . . . 756 . Highest Corruption 36 | . . . . . . . 2 2 2 . 13 6 1 16 36 Average Corruption 7 | . . . . . . . 1 2 2 . 4 4 1 14 19 Corruption Purged 1 | . . . . . . . 1 . . . . . . . . Corruption Blocked . | . . . . . . . . . . . . . . . . Effects 70 | . . . . . . . 2 12 . . 1 1 . 41 13 Message Errors 13 | . . . . . . . . 2 . . . . . 8 3 Matter Fused 13 | . . . . . . . 1 2 . . . . . 8 2 Heat Flow Errors 10 | . . . . . . . . 4 . . 1 . . 5 . Energy Discharges 7 | . . . . . . . 1 . . . . . . 5 1 Parts Rejected 1 | . . . . . . . . . . . . . . 1 . Data Loss (minor) 11 | . . . . . . . . 2 . . . 1 . 7 1 Data Loss (major) 5 | . . . . . . . . 1 . . . . . 3 1 Alerts 2 | . . . . . . . . . . . . . . 2 . Misdirections 1 | . . . . . . . . . . . . . . . 1 Weapon Failures 7 | . . . . . . . . 1 . . . . . 2 4 Overload Shots . | . . . . . . . . . . . . . . . . Overflow Damage 681 | . . . . . 18 17 40 8 . 3 22 262 34 127 150 Projectiles 109 | . . . . . 18 17 40 . . . 1 13 . 20 . Explosions 481 | . . . . . . . . 8 . 3 21 249 34 16 150 Melee 91 | . . . . . . . . . . . . . . 91 . Knockbacks 20 | . . . . . 12 2 . 1 . . 4 . . 1 . Impact . | . . . . . . . . . . . . . . . . Kinetic 19 | . . . . . 12 2 . 1 . . 3 . . 1 . Secondary 1 | . . . . . . . . . . . 1 . . . . Self-Inflicted Damage 1367 | . . . . . 34 . 144 46 . 16 100 267 58 575 127 Shots 52 | . . . . . 2 . 9 2 . 2 6 5 3 18 5 Rammed 9 | . 1 . . . 1 . . . . . 4 . . 3 . Targets Rammed 9 | . 1 . . . 1 . . . . . 4 . . 3 . Kicked . | . . . . . . . . . . . . . . . . Crushed . | . . . . . . . . . . . . . . . . Highest Temperature 401 | . . . . . 401 39 210 243 16 90 136 200 50 340 . Average Temperature 62 | . . . . . 64 13 74 73 10 34 28 48 16 86 . Received Heat Transfer 1545 | . 42 . . . 630 48 27 33 . 18 42 . 9 357 339 Effects 4 | . . . . . 4 . . . . . . . . . . Energy Bleed 1 | . . . . . 1 . . . . . . . . . . Interference 2 | . . . . . 2 . . . . . . . . . . Matter Decay 1 | . . . . . 1 . . . . . . . . . . Siege Activations 2 | . . . . . . . . . . . . . . . 2 Total Turns 142 | . . . . . . . . . . . . . . . 142 Longest Duration 119 | . . . . . . . . . . . . . . . 119 Martial Activations . | . . . . . . . . . . . . . . . . Shielding Activations . | . . . . . . . . . . . . . . . . Robots Disrupted . | . . . . . . . . . . . . . . . . Combat Hostiles . | . . . . . . . . . . . . . . . . Robots Corrupted 25 | . . . . . 1 2 3 4 . . 3 2 1 2 7 Combat Hostiles 25 | . . . . . 1 2 3 4 . . 3 2 1 2 7 Parts Fried 47 | . . . . . 2 4 6 7 . 2 6 2 2 2 14 Impact Corruptions . | . . . . . . . . . . . . . . . . Robots Melted . | . . . . . . . . . . . . . . . . Combat Hostiles . | . . . . . . . . . . . . . . . . Parts Melted 3 | . . . . . . . 2 . . . . 1 . . . Heat Transferred 2197 | . 37 . . . 74 161 298 50 . 50 161 646 100 420 200 Parts Sabotaged 2 | . . . . . . . . . . . . . . . 2 Parts Stolen . | . . . . . . . . . . . . . . . . Parts Stripped . | . . . . . . . . . . . . . . . . Power Chain Reactions 23 | . . . . . . 2 4 4 . 1 . 5 2 3 2 Alert | -11 -10 -10 -10 -9 -8 -7 -7 -7 -7 -6 -6 -5 -4 -3 -3 ------- Run | Yrd Mat Min Exi Min Mat Fac Low Low Zio Pro Fac Fac Fac Res Tes Maximum Alert Level 5 | . . . . . 3 1 . . . . 1 1 . . 5 Low Security (%) 81 | 100 100 100 . 100 69 79 . . . . 98 70 100 100 . Level 1 10 | . . . . . 12 20 . . . . 1 29 . . . Level 2 4 | . . . . . 15 . . . . . . . . . . Level 3 . | . . . . . 2 . . . . . . . . . . Level 4 . | . . . . . . . . . . . . . . . . Level 5 . | . . . . . . . . . . . . . . . . High Security . | . . . . . . . . . . . . . . . . Max Security 2 | . . . . . . . . . . . . . . . 99 Peak Influence 2360 | . 45 13 . . 704 333 . . . . 291 361 82 153 2360 Initial 316 | . . 13 . . . 316 . . . . 150 141 82 22 60 Average 148 | . 10 6 . . 159 128 . . . . 49 162 31 50 1834 Influence Increases 4733 | . 49 . . . 1183 219 217 225 . 105 645 532 121 607 830 Destroy 0b10 Robot/C 2500 | . . . . . 740 100 180 200 . 60 140 240 20 280 540 Destroy 0b10 Robot/NC 245 | . . . . . 105 20 . 5 . 5 20 10 30 20 30 Destroy Leader 494 | . . . . . 184 52 20 20 . 10 64 34 10 40 60 Allied During Kill 2 | . . . . . . . 2 . . . . . . . . Trap Triggered on 0b10 130 | . . . . . 20 . . . . . 90 20 . . . Successful Hack 139 | . 4 . . . 6 11 . . . . 6 52 . 60 . Disable Machine 270 | . . . . . 60 30 . . . . 105 60 15 . . Destroy Structure 488 | . . . . . 8 6 . . . . 40 116 46 132 140 Advance Influence 150 | . . . . . . . . . . . 150 . . . . Partial Spotted 15 | . . . . . . . . . . . 15 . . . . Lose Combat Pursuer 300 | . 45 . . . 60 . 15 . . 30 15 . . 75 60 Influence Decreases 3963 | . 14 35 . . 487 912 214 227 4 105 356 652 247 542 168 Entered New Map 714 | . . 22 . . . 380 2 2 4 . . 148 87 21 48 Time Decay 2757 | . 14 13 . . 467 522 182 225 . 105 226 474 150 379 . Lost Part 342 | . . . . . 20 10 10 . . . . 30 10 142 120 Lost Ally 20 | . . . . . . . 20 . . . . . . . . Purge Threat 130 | . . . . . . . . . . . 130 . . . . Squads Dispatched 36 | . . . . . 5 3 . . . . 8 2 1 4 13 Investigation 2 | . . . . . . . . . . . 1 . . 1 . Extermination 13 | . . . . . . 3 . . . . 4 2 1 3 . Reinforcement 7 | . . . . . 4 . . . . . 3 . . . . Assault 13 | . . . . . 1 . . . . . . . . . 12 Garrison 1 | . . . . . . . . . . . . . . . 1 Intercept . | . . . . . . . . . . . . . . . . Searches Triggered . | . . . . . . . . . . . . . . . . Construction Impeded . | . . . . . . . . . . . . . . . . Haulers Reinforced . | . . . . . . . . . . . . . . . . Active Scanning Responses . | . . . . . . . . . . . . . . . . Cargo Convoy Interrupts . | . . . . . . . . . . . . . . . . Stealth | -11 -10 -10 -10 -9 -8 -7 -7 -7 -7 -6 -6 -5 -4 -3 -3 --------- Run | Yrd Mat Min Exi Min Mat Fac Low Low Zio Pro Fac Fac Fac Res Tes Distress Signals 11 | . 1 . . . 8 . . . . . . . . 1 1 Communications Jammed 33 | . . . . . . . . . . . 4 . 1 3 25 Distress Signals 26 | . . . . . . . . . . . 1 . 1 3 21 Times Spotted 197 | . 5 . . . 46 6 15 10 . 6 15 13 1 20 60 Peak Tracking Total 28 | . 7 . . . 6 2 5 3 . 4 3 6 1 5 28 Tactical Retreats 13 | . 1 . . . 3 . 1 . . 1 1 . . 3 3 Traps | -11 -10 -10 -10 -9 -8 -7 -7 -7 -7 -6 -6 -5 -4 -3 -3 ------- Run | Yrd Mat Min Exi Min Mat Fac Low Low Zio Pro Fac Fac Fac Res Tes Traps Triggered 6 | . . . . . . 3 . . . . 1 . . 1 1 Indirectly 1 | . . . . . . . . . . . . . . . 1 Trap Hack Attempts . | . . . . . . . . . . . . . . . . Triggered . | . . . . . . . . . . . . . . . . Disarmed . | . . . . . . . . . . . . . . . . Reprogrammed . | . . . . . . . . . . . . . . . . Reused 13 | . . . . . 2 . . . . . 9 2 . . . Traps Reconfigurated 35 | . . . . . 12 5 . . . . 13 5 . . . Traps Extracted 6 | . . . . . . . . 2 . . 4 . . . . Installed 5 | . . . . . . . . . . . 5 . . . . Triggered 13 | . . . . . 2 . . . . . 9 2 . . . Most Traps Carried 4 | . . . . . . . . 2 2 2 4 . . . . Machines | -11 -10 -10 -10 -9 -8 -7 -7 -7 -7 -6 -6 -5 -4 -3 -3 ---------- Run | Yrd Mat Min Exi Min Mat Fac Low Low Zio Pro Fac Fac Fac Res Tes Machines Disabled 20 | . . . . . 4 2 1 1 . . 7 4 1 . . Max in Single Turn 2 | . . . . . 1 2 1 1 . . 2 2 1 . . Garrison Access 3 | . . . . . . . . . . . 1 . . 2 . Machines Repaired . | . . . . . . . . . . . . . . . . Machines Dismantled . | . . . . . . . . . . . . . . . . Machines Sabotaged . | . . . . . . . . . . . . . . . . Overloaded Fab Kills . | . . . . . . . . . . . . . . . . Hacking | -11 -10 -10 -10 -9 -8 -7 -7 -7 -7 -6 -6 -5 -4 -3 -3 --------- Run | Yrd Mat Min Exi Min Mat Fac Low Low Zio Pro Fac Fac Fac Res Tes Machines Accessed 30 | . 2 . 1 . 4 3 . . . . 4 9 1 6 . Terminals 15 | . 2 . . . 2 1 . . . . 1 5 1 3 . Fabricators 3 | . . . . . . 1 . . . . 1 1 . . . Repair Stations 3 | . . . . . 1 . . . . . . 1 . 1 . Recycling Units 3 | . . . . . . 1 . . . . 1 1 . . . Scanalyzers 2 | . . . . . 1 . . . . . . 1 . . . Garrison Access 3 | . . . . . . . . . . . 1 . . 2 . Total Hacks 70 | . 6 . 1 . 8 8 . . . . 6 26 3 12 . Successful 36 | . 3 . 1 . 5 2 . . . . 6 14 . 5 . Failed 34 | . 3 . . . 3 6 . . . . . 12 3 7 . Catastrophic 6 | . 1 . . . . 1 . . . . . 2 1 1 . Database Lockouts . | . . . . . . . . . . . . . . . . Manual 24 | . 3 . 1 . 3 7 . . . . 2 4 3 1 . Terminals 33 | . 6 . . . 4 2 . . . . 1 10 3 7 . Fabricators 9 | . . . . . . 3 . . . . 2 4 . . . Repair Stations 10 | . . . . . 2 . . . . . . 6 . 2 . Recycling Units 8 | . . . . . . 3 . . . . 2 3 . . . Scanalyzers 5 | . . . . . 2 . . . . . . 3 . . . Garrison Access 4 | . . . . . . . . . . . 1 . . 3 . Terminal Hacks 10 | . 2 . 1 . 2 1 . . . . 1 3 . . . Robot Analysis 1 | . . . . . 1 . . . . . . . . . . Open DSF 1 | . . . . . . . . . . . . 1 . . . Branch Access Points 1 | . 1 . . . . . . . . . . . . . . Unreport Threat 1 | . . . . . . . . . . . 1 . . . . Locate Traps 3 | . . . . . 1 1 . . . . . 1 . . . Hauler Manifests 1 | . . . . . . . . . . . . 1 . . . Zone Layout 1 | . 1 . . . . . . . . . . . . . . Proto ID Catalog 1 | . . . 1 . . . . . . . . . . . . Fabricator Hacks 4 | . . . . . . . . . . . 1 3 . . . Load Schematic 2 | . . . . . . . . . . . 1 1 . . . Build 2 | . . . . . . . . . . . . 2 . . . Repair Station Hacks 6 | . . . . . 1 . . . . . . 3 . 2 . Scan Component 4 | . . . . . 1 . . . . . . 2 . 1 . Repair 2 | . . . . . . . . . . . . 1 . 1 . Recycling Unit Hacks 4 | . . . . . . . . . . . 1 3 . . . Process 1 | . . . . . . . . . . . . 1 . . . Retrieve Matter 2 | . . . . . . . . . . . . 2 . . . Retrieve Components 1 | . . . . . . . . . . . 1 . . . . Scanalyzer 3 | . . . . . 2 . . . . . . 1 . . . Retrieve Study 3 | . . . . . 2 . . . . . . 1 . . . Garrison Access Hacks 3 | . . . . . . . . . . . 1 . . 2 . Seal Access 3 | . . . . . . . . . . . 1 . . 2 . Unauthorized Hacks 6 | . 1 . . . . 1 . . . . 2 1 . 1 . Terminals 3 | . 1 . . . . . . . . . . 1 . 1 . Botnet 2 | . . . . . . . . . . . . 1 . 1 . Skim 1 | . 1 . . . . . . . . . . . . . . Fabricators 1 | . . . . . . . . . . . 1 . . . . Recompile 1 | . . . . . . . . . . . 1 . . . . Repair Stations . | . . . . . . . . . . . . . . . . Recycling Units 2 | . . . . . . 1 . . . . 1 . . . . Mask 2 | . . . . . . 1 . . . . 1 . . . . Scanalyzers . | . . . . . . . . . . . . . . . . Garrison Access . | . . . . . . . . . . . . . . . . Data Cores Recovered 1 | . . . . . 1 . . . . . . . . . . Used 1 | . . . . . 1 . . . . . . . . . . Hacking Detections 21 | . 1 . . . 4 2 . . . . 1 7 1 5 . Full Trace Events 1 | . . . . . . . . . . . . . . 1 . Feedback Events . | . . . . . . . . . . . . . . . . Feedback Blocked . | . . . . . . . . . . . . . . . . Robot Schematics Acquired 3 | . . . . . . . . . 3 . . . . . . Robots Built . | . . . . . . . . . . . . . . . . Authchips . | . . . . . . . . . . . . . . . . Time . | . . . . . . . . . . . . . . . . Total Robot Build Rating . | . . . . . . . . . . . . . . . . Part Schematics Acquired 16 | . . . . . . . . . 16 . . . . . . Parts Built 2 | . . . . . . . . . . . . 2 . . . Authchips 1 | . . . . . . . . . . . . 1 . . . Time 153 | . . . . . . . . . . . . 153 . . . Total Part Build Rating 15 | . . . . . . . . . . . . 15 . . . Part Studies Acquired 3 | . . . . . 2 . . . . . . 1 . . . Parts Repaired 2 | . . . . . . . . . . . . 1 . 1 . Time 55 | . . . . . . . . . . . . 30 . 25 . Parts Recycled . | . . . . . . . . . . . . . . . . Recycled Matter 36 | . . . . . . . . . . . . 36 . . . Retrieved Matter 36 | . . . . . . . . . . . . 36 . . . Retrieved Components 2 | . . . . . . . . . . . 2 . . . . Parts Scanalyzed . | . . . . . . . . . . . . . . . . Part Schematics Acquired . | . . . . . . . . . . . . . . . . Parts Damaged . | . . . . . . . . . . . . . . . . Bothacking | -11 -10 -10 -10 -9 -8 -7 -7 -7 -7 -6 -6 -5 -4 -3 -3 ------------ Run | Yrd Mat Min Exi Min Mat Fac Low Low Zio Pro Fac Fac Fac Res Tes Used RIF Installer . | . . . . . . . . . . . . . . . . Robots Hacked . | . . . . . . . . . . . . . . . . Non-combat . | . . . . . . . . . . . . . . . . Combat . | . . . . . . . . . . . . . . . . Robot Hacks Applied . | . . . . . . . . . . . . . . . . Relay Couplers Released . | . . . . . . . . . . . . . . . . Fabnet Peak Effective % . | . . . . . . . . . . . . . . . . Robots Rewired 1 | . . . . . . . 1 . . . . . . . . Allies Hacked . | . . . . . . . . . . . . . . . . Hacks Repelled . | . . . . . . . . . . . . . . . . Allies | -11 -10 -10 -10 -9 -8 -7 -7 -7 -7 -6 -6 -5 -4 -3 -3 -------- Run | Yrd Mat Min Exi Min Mat Fac Low Low Zio Pro Fac Fac Fac Res Tes Total Allies 1 | . . . . . . . 1 . . . . . . . . Largest Group 1 | . . . . . . . 1 . . . . . . . . Highest-Rated Group 16 | . . . . . . . 16 . . . . . . . . Highest-Rated Ally 16 | . . . . . . . 16 . . . . . . . . Total Orders . | . . . . . . . . . . . . . . . . Ally Attacks 6 | . . . . . . . 6 . . . . . . . . Total Damage 61 | . . . . . . . 61 . . . . . . . . Kills . | . . . . . . . . . . . . . . . . Allies Corrupted . | . . . . . . . . . . . . . . . . Allies Melted . | . . . . . . . . . . . . . . . . Intel | -11 -10 -10 -10 -9 -8 -7 -7 -7 -7 -6 -6 -5 -4 -3 -3 ------- Run | Yrd Mat Min Exi Min Mat Fac Low Low Zio Pro Fac Fac Fac Res Tes Active Infowar (turns) 5384 | . . . . . . . . 121 . . 2161 1210 386 1357 149 Traps 1860 | . . . . . . . . 121 . . 1280 459 . . . Jamming 5212 | . . . . . . . . . . . 2110 1210 386 1357 149 Robot Analysis Total 1 | . . . . . 1 . . . . . . . . . . Derelict Logs Recovered 7 | . . . . 1 . . 2 2 1 1 . . . . . Drone Launches . | . . . . . . . . . . . . . . . . Drone Recoveries . | . . . . . . . . . . . . . . . . Exploration | -11 -10 -10 -10 -9 -8 -7 -7 -7 -7 -6 -6 -5 -4 -3 -3 ------------- Run | Yrd Mat Min Exi Min Mat Fac Low Low Zio Pro Fac Fac Fac Res Tes Turns Passed 15307 | 38 69 47 277 145 2999 1448 1070 1093 2336 426 2161 1210 386 1357 245 Spaces Moved 7431 | 58 122 86 420 90 985 722 501 526 1255 223 900 640 216 644 43 Core 633 | 58 122 86 367 . . . . . . . . . . . . Treads 6088 | . . . 53 90 985 722 501 526 1255 223 900 476 . 314 43 Legs 710 | . . . . . . . . . . . . 164 216 330 . Wheels . | . . . . . . . . . . . . . . . . Hover . | . . . . . . . . . . . . . . . . Flight . | . . . . . . . . . . . . . . . . Fastest Speed 50 | 50 50 50 50 160 160 145 185 185 185 185 185 120 120 117 151 Average Speed 163 | 50 50 50 63 160 191 176 185 185 185 185 185 147 120 137 153 Slowest Speed 272 | 50 50 50 160 160 240 185 185 185 185 185 185 185 120 272 155 Overloaded Moves . | . . . . . . . . . . . . . . . . Propulsion Burnouts . | . . . . . . . . . . . . . . . . Robots Hopped . | . . . . . . . . . . . . . . . . Potential Cave-ins 6 | . . . . . . . . . . . 2 2 . 2 . Cave-ins Triggered . | . . . . . . . . . . . . . . . . Exploration Rate (%) 36 | 3 28 30 88 26 61 20 60 62 85 41 21 18 9 24 9 Regions Visited 15 Branch Regions 8 Pre-discovered Areas 5 | . . . . 2 . . 1 . 2 . . . . . . Known Exits Taken 3 | . 1 . . . . . . . . . 1 . . 1 . Unknown Exits Taken 12 | 1 . 1 1 1 1 1 1 1 1 1 . 1 1 . . Scrap Searched 14 | . . . . 1 . . 8 3 1 1 . . . . . Spaces Dug 150 | . . . . . 1 2 21 8 . . 52 5 25 32 4 Terrain Destroyed 423 | . . . . . 4 7 35 21 . 7 73 81 30 88 77 Melee 12 | . . . . . . . . . . . . . . 12 . Projectile 149 | . . . . . 4 5 10 6 . . 36 13 23 52 . AOE 262 | . . . . . . 2 25 15 . 7 37 68 7 24 77 Terrain Rammed . | . . . . . . . . . . . . . . . . Walls Destroyed . | . . . . . . . . . . . . . . . . Machines Disabled . | . . . . . . . . . . . . . . . . Actions | -11 -10 -10 -10 -9 -8 -7 -7 -7 -7 -6 -6 -5 -4 -3 -3 --------- Run | Yrd Mat Min Exi Min Mat Fac Low Low Zio Pro Fac Fac Fac Res Tes Total 9814 | 66 128 88 428 91 1870 861 590 615 1267 229 1283 860 310 938 190 Wait 1411 | . . . . . 621 79 17 56 3 3 237 127 56 112 100 Move 7416 | 57 121 85 419 89 984 721 500 525 1254 222 899 639 215 643 43 Hop . | . . . . . . . . . . . . . . . . Pick Up 122 | 4 3 1 2 1 51 14 3 1 1 . 9 12 1 18 1 Fast Attach 18 | . . . 2 . 6 2 . 1 1 . 1 2 2 1 . Attach 65 | 4 1 1 1 1 12 3 1 . . . 2 9 2 24 4 Detach 15 | 1 1 . . . 4 . . . . . 1 2 1 5 . Swap 123 | . . . 2 . 33 7 10 6 5 . 32 19 2 5 2 Drop 103 | . . . 2 . 47 11 2 4 2 . 8 12 . 8 7 Fire 447 | . 1 1 . . 111 24 33 22 1 4 85 38 31 76 20 Melee 43 | . . . . . . . . . . . . . . 43 . Ram . | . . . . . . . . . . . . . . . . Kick . | . . . . . . . . . . . . . . . . Crush 9 | . 1 . . . 1 . . . . . 4 . . 3 . Escape Stasis 13 | . . . . . . . . . . . . . . . 13 Rewire 24 | . . . . . . . 24 . . . . . . . . Trap 5 | . . . . . . . . . . . 5 . . . . Miscellaneous . | . . . . . . . . . . . . . . . . Route ------- -11/Scrapyard -10/Materials (discovered 2 exits: *Min x2) -10/Mines -10/Exiles -9/Mines -8/Materials -7/Factory -7/Lower Caves -7/Lower Caves (discovered 2 exits: *Fac / [*Zio]) -7/Zion -6/Proximity Caves -6/Factory (discovered 2 exits: *Fac x2) -5/Factory -4/Factory -3/Research -3/Testing History --------- Turn | Location | Event 4 | -11/Scrapyard | Discovered new exit (range 16) 39 | -11/Scrapyard | Entered Materials 48 | -10/Materials | Identified exit to Mines 108 | -10/Materials | Entered Mines 138 | -10/Mines | Found a Scrap Suit stashed away for nefarious purposes 141 | -10/Mines | Found Scrap Suit 153 | -10/Mines | Deemed a non-threat by the Exiles lab entrance 153 | -10/Mines | Discovered new exit (range 5) 155 | -10/Mines | Entered Exiles 168 | -10/Exiles | Met 8R-AWN 177 | -10/Exiles | Met EX-HEX 193 | -10/Exiles | Met EX-BIN 198 | -10/Exiles | Aligned with FarCom system 199 | -10/Exiles | Given EX-Vault access code 211 | -10/Exiles | Opened EX-Vault 214 | -10/Exiles | Found Trap Reconfigurator 226 | -10/Exiles | Warned to stay clear of 0b10 Research branches 242 | -10/Exiles | Met EX-DEC 275 | -10/Exiles | Visited The Gauntlet 311 | -10/Exiles | Build established: Mutant 416 | -10/Exiles | Discovered new exit (range 11) 432 | -10/Exiles | Left Exiles lab with Trap Reconfigurator 432 | -10/Exiles | Entered Mines 433 | -9/Mines | Learned location of Storage (-9) 465 | -9/Mines | Met a Derelict bent on vengeance 469 | -9/Mines | Learned location of Zion (-7) 561 | -9/Mines | Discovered new exit (range 13) 577 | -9/Mines | Entered Materials 577 | -8/Materials | Evolved 4 slots: Power x1, Utility x2, Weapon x1 1106 | -8/Materials | Build established: Tank 1174 | -8/Materials | Discovered new exit (range 7) 3377 | -8/Materials | First assault squad dispatched 3576 | -8/Materials | Entered Factory 3576 | -7/Factory | Evolved 2 slots: Propulsion x2 3636 | -7/Factory | Build established: Skirmisher 4737 | -7/Factory | Discovered new exit (range 14) 5024 | -7/Factory | Entered Lower Caves 5076 | -7/Lower Caves | Attracted the attention of an 0b10 outpost 5307 | -7/Lower Caves | Build established: Bomber 5859 | -7/Lower Caves | Learned Factory garrison access intel 6071 | -7/Lower Caves | Discovered new exit (range 13) 6094 | -7/Lower Caves | Entered another Lower Caves area 6096 | -7/Lower Caves | Attracted the attention of an 0b10 checkpoint 6222 | -7/Lower Caves | Discovered new exit (range 5) 6262 | -7/Lower Caves | Attacked by a delusional Derelict stockpiling parts 6344 | -7/Lower Caves | Learned location of 1 exit from Factory 6408 | -7/Lower Caves | Encountered a Warlord checkpoint 6868 | -7/Lower Caves | Learned 4 Factory zone layouts 7165 | -7/Lower Caves | Discovered new exit (range 11) 7187 | -7/Lower Caves | Entered Zion 7245 | -7/Zion | System corruption cleaned by Quarantine Array 7437 | -7/Zion | Discovered new exit (range 11) 7670 | -7/Zion | Visited the Megawrench Repair Shop 8623 | -7/Zion | Found CR-A16's Pointy Stick 8751 | -7/Zion | Megawrench repaired 12 parts 9196 | -7/Zion | Rebuked by Imprinter 9523 | -7/Zion | Entered Proximity Caves 9772 | -6/Proximity Caves | Spotter reported a threat 9910 | -6/Proximity Caves | Learned Factory terminal intel 9925 | -6/Proximity Caves | Discovered new exit (range 12) 9949 | -6/Proximity Caves | Entered Factory 9949 | -6/Factory | Evolved 2 slots: Utility x2 9950 | -6/Factory | Identified exit to Factory 9952 | -6/Factory | Loaded intel: 26 terminal locations 9953 | -6/Factory | Loaded intel: 4 garrison access locations 10263 | -6/Factory | Build established: Skirmisher 12104 | -6/Factory | System corruption reached 10% 12110 | -6/Factory | Entered another Factory area 12110 | -5/Factory | Evolved 2 slots: Propulsion x1, Utility x1 12167 | -5/Factory | Identified exit to DSF 12203 | -5/Factory | Destroyed 9 combat bots 12321 | -5/Factory | Fabricated Biometal Heavy Treads? 12449 | -5/Factory | Fabricated Tiamat Missile Launcher (x1) 12471 | -5/Factory | Build established: Bomber 12888 | -5/Factory | Repaired Adv. EMP Blaster 12985 | -5/Factory | Discovered new exit (range 13) 13289 | -5/Factory | Build established: Mutant 13320 | -5/Factory | Entered another Factory area 13320 | -4/Factory | Evolved 2 slots: Propulsion x1, Utility x1 13617 | -4/Factory | Discovered new exit (range 9) 13673 | -4/Factory | Found Prototype Hackware 13673 | -4/Factory | Identified Exp. Hacking Suite 13706 | -4/Factory | Entered Research 13706 | -3/Research | Evolved 2 slots: Power x1, Propulsion x1 13963 | -3/Research | Spotted B-86 Titan 14078 | -3/Research | System corruption reached 10% 14396 | -3/Research | Lost 12 parts (2p6n1u3w) 14608 | -3/Research | Repaired Broken Adv. EMP Blaster 15012 | -3/Research | Discovered new exit (range 15) 15033 | -3/Research | Identified exit to Testing 15063 | -3/Research | Entered Testing 15064 | -3/Testing | Maximum security lockdown engaged 15180 | -3/Testing | Spotted Striker 15180 | -3/Testing | Spotted Striker 15184 | -3/Testing | Destroyed Striker 15204 | -3/Testing | Destroyed Striker 15227 | -3/Testing | Destroyed 17 combat bots 15230 | -3/Testing | Lost 4 parts (1p1n2u) 15273 | -3/Testing | Spotted Investigator 15274 | -3/Testing | Garrison activated, responded to threat 15277 | -3/Testing | Scanned by Researcher 15282 | -3/Testing | Destroyed Investigator 15288 | -3/Testing | Spotted Executioner 15298 | -3/Testing | System corruption reached 30% 15301 | -3/Testing | Core integrity fell below 50% 15306 | -3/Testing | Core integrity fell below 20% 15308 | -3/Testing | Destroyed by G-67 Veteran with Plasma Rifle Last Messages --------------- 15303_ Stasis bubble strength at 152. 15304_ Penetrated by Slug. 15304_ Slug penetrates Earth. 15304_ Penetrated by Slug. 15304_ Stasis bubble strength at 146. 15305_ Penetrated by Slug. 15305_ Slug penetrates Wall. 15305_ Stasis bubble strength at 140. 15306_ Stasis bubble strength at 134. 15306_ B-74 Champion suffers critical hit (Destroy). 15306_ B-74 Champion destroyed. 15307_ Stasis bubble strength at 128. 15307_ Critical hit (Burn: +23). 15308_ Penetrated by Slug. 15308_ Slug penetrates Wall. 15308_ Stasis bubble strength at 122. 15308_ Penetrated by Slug. 15308_ Slug penetrates Wall. 15308_ G-73 Enforcer destroyed. Map ----- +----------------------------------------------------+ | ??????????????????????????????????????????????? | | ??????????????????????????????????????????????? | | ??????????????????????????????????????????????? | | ??????????????????????????????????????????????? | | ??????????????????????????????????????????????? | | ??????????????????????????????????????????????? | | ??????????????????????????????????????????????? | | ??????????????????????????????????????????????? | | ??????????????????????????????????????????????? | | ????????? ? ???????????????????????????????? | | ???????? #? #? ??????????????????????? | | ?????"?" # ^ ? "?????????????????????? | | ????? ?" s # # ""????????????????????? | | ?????" " %% % ????????????????????? | | ? ???" " % % *????????????????????? | | ?? """ ! ##+##????????????????? | | ??? # % % % ?????????????????? | | ???? % % % % ?????????????????? | | ????? # = % *! ????????????? | | ?????? =!/ ! ! Eg """""" """???s???????? | | ?????### # #] i """""" """"??????????? | | ?????# ##%/!%% *= b """"" """""" "??????? | | ?????# [ Y* ??????? | | ?????# ## #g g!Yg l ?????? | | ?????# h!lbppp ?????? | | ?????# # ! !l@=! ?????? | | ?????# /! %! = # *!!;#;#######+##??????????? | | ?????####! [ %!/# #????????????????????? | | ????????## /= ###????????????????????? | | ?????????#[=%* ## #;#??????????????????????? | | ?????????### # # # #??????????????????????? | | ???????????# ######### #??????????????????????? | | ???????????###???????# #??????????????????????? | | ????????????????????? #??????????????????????? | | ????????????????????? #???????????????????????? | | ?????????????????????#????????????????????????? | | ??????????????????????????????????????????????? | | ??????????????????????????????????????????????? | | ??????????????????????????????????????????????? | | ??????????????????????????????????????????????? | | ??????????????????????????????????????????????? | | ??????????????????????????????????????????????? | | ??????????????????????????????????????????????? | | ??????????????????????????????????????????????? | | | | | | | | | | | | | +----------------------------------------------------+ Best States ------------- Heat Dissipation 84 Coolant Potential 65 Energy Generation 57 Energy Capacity 805 Matter Stores 300 Matter Capacity 300 Sight Range 16 Terrain Scan Density 10 Jamming Range 12 Base Temperature (-) 150 Armor Coverage 300 Resistance: KI 20 Resistance: TH 20 Weapon Shielding 66 Evasion (%) 70 Targeting Accuracy 6 Launcher Accuracy 40 Recoil Reduction 7 Energy Filtering 30 Offensive Hacking 16 Authchip Count 1 Trap Extractor Capacity 6 Item Schematics ----------------- Great Axe | -7/Zion | Archive Energy Well | -7/Zion | Archive Magnetic Acceleration Cannon | -7/Zion | Archive Gravmag System | -7/Zion | Archive Arm. Leg | -7/Zion | Archive Adv. Assault Cannon | -7/Zion | Archive Adv. Cooling System | -7/Zion | Archive Fission Core | -7/Zion | Archive Imp. Shield Generator | -7/Zion | Archive Gauss Rifle | -7/Zion | Archive Matter Compressor | -7/Zion | Archive Imp. Cooling System | -7/Zion | Archive Plasma Rifle | -7/Zion | Archive Recalibrator | -7/Zion | Archive Variable Charge Gun | -7/Zion | Archive Tiamat Missile Launcher | -7/Zion | Archive Robot Schematics ------------------ R-06 Scavenger | -7/Zion | Archive L-41 Fighter | -7/Zion | Archive W-25 Informer | -7/Zion | Archive Fabricated ------------ Biometal Heavy Treads | x1 | -5/Factory | Preloaded Tiamat Missile Launcher | x1 | -5/Factory | Authchip Repaired ---------- Adv. EMP Blaster | 10% | -5/Factory Adv. EMP Blaster | 48% | -3/Research | Broken Studied --------- Adv. Treads | -8/Materials | Hacked Lgt. Deuterium Engine | -8/Materials | Hacked Neutrino Core | -5/Factory | Hacked Alien Tech Used ----------------- None Achievements -------------- Hornet's Nest Challenges ------------ None Game ------ Seed DirectedNetworkedReactor Manual? 0 Play Time 02:26:32 Cumulative 110.1 hours Start 2026.04.06 @ 19:25:17 End 2026.04.07 @ 16:40:05 Sessions 3 Manual Loads 0 Difficulty Rogue Special Mode None Game No. 83 Rogue 83 Adventurer 0 Explorer 0 Win Type - Total 1 Types 0/0/0/1/0/0/0/0/0/0 Lore% 45 Gallery% 50 Achievement% 48 Wizard Run 0 Options --------- Layout 2 ASCII 0 Keyboard 0 Movement Mouse Keybinds 0 Fullscreen 1 Font 48/Smallcaps Map View 50x44 Zoom Use 0% Tactical HUD 1 Map Filters NONE Filters NONE Steam 1 RUN: 91268678-efe6-4502-8bd4-3e0a2d0f0b6c